[Event "Live Chess"]
[Site "Chess.com"]
[Date "2024.06.02"]
[Round "-"]
[White "r0ad_t0-gm"]
[Black "Dashman93"]
[Result "1/2-1/2"]
[WhiteElo "2301"]
[BlackElo "2148"]
[TimeControl "300"]
[EndTime "6:55:22 PDT"]
[Termination "Game drawn by repetition"]

1. Nf3 {[%clk 0:04:59]} 1... g6 {[%clk 0:04:56.3]} 2. e4 {[%clk 0:04:57.7]} 2...
Bg7 {[%clk 0:04:55.6]} 3. d4 {[%clk 0:04:57.6]} 3... c6 {[%clk 0:04:54.3]} 4.
Bd3 {[%clk 0:04:56.6]} 4... d5 {[%clk 0:04:53.8]} 5. e5 {[%clk 0:04:55.8]} 5...
h5 {[%clk 0:04:52.4]} 6. O-O {[%clk 0:04:52.9]} 6... Nh6 {[%clk 0:04:51.6]} 7.
h3 {[%clk 0:04:51.8]} 7... Nf5 {[%clk 0:04:50.5]} 8. c3 {[%clk 0:04:50]} 8...
Nd7 {[%clk 0:04:47.6]} 9. Re1 {[%clk 0:04:49.4]} 9... Nf8 {[%clk 0:04:46.9]} 10.
c4 {[%clk 0:04:42.3]} 10... dxc4 {[%clk 0:04:42.5]} 11. Bxc4 {[%clk 0:04:42.2]}
11... Be6 {[%clk 0:04:41.4]} 12. Bf1 {[%clk 0:04:25.7]} 12... Bd5 {[%clk
0:04:34.5]} 13. Nbd2 {[%clk 0:04:17.8]} 13... Ne6 {[%clk 0:04:32.1]} 14. Ne4
{[%clk 0:04:10.4]} 14... O-O {[%clk 0:04:16.2]} 15. Qd3 {[%clk 0:03:07.5]} 15...
Bxe4 {[%clk 0:04:09.7]} 16. Rxe4 {[%clk 0:03:07.4]} 16... Qd5 {[%clk 0:03:56.1]}
17. Be3 {[%clk 0:03:02.5]} 17... Rfd8 {[%clk 0:03:54.2]} 18. Rd1 {[%clk
0:03:00.1]} 18... Qxa2 {[%clk 0:03:46.8]} 19. g4 {[%clk 0:02:44.4]} 19... hxg4
{[%clk 0:03:43.5]} 20. hxg4 {[%clk 0:02:44.3]} 20... Nxe3 {[%clk 0:03:41.7]} 21.
fxe3 {[%clk 0:02:42.7]} 21... Nc5 {[%clk 0:03:35.4]} 22. Qc2 {[%clk 0:02:22.9]}
22... Nxe4 {[%clk 0:03:33.3]} 23. Qxe4 {[%clk 0:02:22.8]} 23... Qd5 {[%clk
0:03:31.8]} 24. Qf4 {[%clk 0:02:20.9]} 24... f6 {[%clk 0:03:18.2]} 25. Bd3
{[%clk 0:02:07.5]} 25... fxe5 {[%clk 0:03:15.2]} 26. dxe5 {[%clk 0:02:07.4]}
26... Rf8 {[%clk 0:03:09.4]} 27. Bc4 {[%clk 0:02:06]} 27... Rxf4 {[%clk
0:03:02.6]} 28. Bxd5+ {[%clk 0:02:05.1]} 28... cxd5 {[%clk 0:03:02.1]} 29. exf4
{[%clk 0:02:05]} 29... Rf8 {[%clk 0:02:55.1]} 30. Rd4 {[%clk 0:01:53]} 30... e6
{[%clk 0:02:54.1]} 31. Ng5 {[%clk 0:01:49.2]} 31... Re8 {[%clk 0:02:49.3]} 32.
Kf2 {[%clk 0:01:48.4]} 32... Bh6 {[%clk 0:02:47.2]} 33. Nf3 {[%clk 0:01:48]}
33... Bf8 {[%clk 0:02:45.7]} 34. b4 {[%clk 0:01:42.7]} 34... b6 {[%clk
0:02:38.7]} 35. Ke2 {[%clk 0:01:40.8]} 35... a5 {[%clk 0:02:36.1]} 36. bxa5
{[%clk 0:01:40.7]} 36... bxa5 {[%clk 0:02:36]} 37. Kd3 {[%clk 0:01:37.8]} 37...
Rb8 {[%clk 0:02:34.4]} 38. Nd2 {[%clk 0:01:34.3]} 38... Bc5 {[%clk 0:02:29.7]}
39. Ra4 {[%clk 0:01:32.8]} 39... Bb4 {[%clk 0:02:29.1]} 40. Nb3 {[%clk 0:01:29]}
40... Rb5 {[%clk 0:02:23.3]} 41. Nd4 {[%clk 0:01:26.3]} 41... Rb6 {[%clk
0:02:19.6]} 42. Nb3 {[%clk 0:01:25.6]} 42... Ra6 {[%clk 0:02:15.2]} 43. Kd4
{[%clk 0:01:22.8]} 43... Kf7 {[%clk 0:02:13.5]} 44. Nc5 {[%clk 0:01:03.6]} 44...
Rc6 {[%clk 0:02:04.5]} 45. Nb7 {[%clk 0:00:49]} 45... Rc4+ {[%clk 0:02:03]} 46.
Kd3 {[%clk 0:00:45.9]} 46... Rxf4 {[%clk 0:01:56.9]} 47. Nxa5 {[%clk 0:00:45.2]}
47... Rf3+ {[%clk 0:01:45.4]} 48. Ke2 {[%clk 0:00:44.4]} 48... Rf4 {[%clk
0:01:33.2]} 49. Nc6 {[%clk 0:00:43.6]} 49... Bd2 {[%clk 0:01:32.5]} 50. Ra7+
{[%clk 0:00:42.7]} 50... Kg8 {[%clk 0:01:27.3]} 51. Kxd2 {[%clk 0:00:42.6]}
51... Rxg4 {[%clk 0:01:26.6]} 52. Ke3 {[%clk 0:00:41.5]} 52... Re4+ {[%clk
0:01:25.3]} 53. Kd3 {[%clk 0:00:41.1]} 53... Rc4 {[%clk 0:01:22.8]} 54. Nd8
{[%clk 0:00:37.7]} 54... Re4 {[%clk 0:01:18.4]} 55. Nxe6 {[%clk 0:00:37.6]}
55... Rxe5 {[%clk 0:01:17.1]} 56. Nf4 {[%clk 0:00:35.8]} 56... g5 {[%clk
0:01:15.4]} 57. Nxd5 {[%clk 0:00:32.7]} 57... Rxd5+ {[%clk 0:01:14.4]} 58. Ke4
{[%clk 0:00:32.6]} 58... Rb5 {[%clk 0:01:13.5]} 59. Kf3 {[%clk 0:00:31.5]} 59...
Kf8 {[%clk 0:01:10.9]} 60. Kg4 {[%clk 0:00:31.1]} 60... Rc5 {[%clk 0:01:10.3]}
61. Rb7 {[%clk 0:00:29]} 61... Kg8 {[%clk 0:01:09.1]} 62. Rd7 {[%clk 0:00:27.9]}
62... Re5 {[%clk 0:01:08.3]} 63. Rc7 {[%clk 0:00:27.1]} 63... Ra5 {[%clk
0:01:07.5]} 64. Rd7 {[%clk 0:00:26.5]} 64... Rb5 {[%clk 0:01:06.9]} 65. Rc7
{[%clk 0:00:26.1]} 65... Kf8 {[%clk 0:01:06.4]} 66. Rd7 {[%clk 0:00:25.5]} 66...
Rc5 {[%clk 0:01:05.5]} 67. Rb7 {[%clk 0:00:24.7]} 67... Ke8 {[%clk 0:01:04.9]}
68. Ra7 {[%clk 0:00:23.8]} 68... Kf8 {[%clk 0:01:04.1]} 69. Rb7 {[%clk
0:00:23.2]} 1/2-1/2

[Event "Live Chess"]
[Site "Chess.com"]
[Date "2024.06.02"]
[Round "-"]
[White "MagnersCarlsberg2870"]
[Black "halfberg"]
[Result "0-1"]
[WhiteElo "1775"]
[BlackElo "1874"]
[TimeControl "300"]
[EndTime "6:55:22 PDT"]
[Termination "halfberg won by resignation"]

1. d4 {[%clk 0:04:57.9]} 1... Nf6 {[%clk 0:04:57.1]} 2. Nf3 {[%clk 0:04:56.8]}
2... c5 {[%clk 0:04:53.8]} 3. e3 {[%clk 0:04:55.5]} 3... cxd4 {[%clk 0:04:49.1]}
4. exd4 {[%clk 0:04:54.1]} 4... d5 {[%clk 0:04:43]} 5. Bd3 {[%clk 0:04:52.1]}
5... Bg4 {[%clk 0:04:37.8]} 6. h3 {[%clk 0:04:50.9]} 6... Bh5 {[%clk 0:04:35.7]}
7. Nbd2 {[%clk 0:04:49.1]} 7... e6 {[%clk 0:04:33.6]} 8. c3 {[%clk 0:04:48]}
8... Be7 {[%clk 0:04:29.8]} 9. Qa4+ {[%clk 0:04:44.9]} 9... Nbd7 {[%clk
0:04:25.3]} 10. Ne5 {[%clk 0:04:42.3]} 10... O-O {[%clk 0:04:14]} 11. g4 {[%clk
0:04:41.2]} 11... Bg6 {[%clk 0:04:10.9]} 12. g5 {[%clk 0:04:40.2]} 12... Nxe5
{[%clk 0:04:01.8]} 13. Bxg6 {[%clk 0:04:37.7]} 13... Nxg6 {[%clk 0:03:57.9]} 14.
gxf6 {[%clk 0:04:36.4]} 14... Bxf6 {[%clk 0:03:56.2]} 15. Nf3 {[%clk 0:04:32.5]}
15... e5 {[%clk 0:03:49.3]} 16. Be3 {[%clk 0:04:29.7]} 16... exd4 {[%clk
0:03:45.5]} 17. Nxd4 {[%clk 0:04:24]} 17... Re8 {[%clk 0:03:39.9]} 18. O-O-O
{[%clk 0:04:22]} 18... a6 {[%clk 0:03:26.9]} 19. Qb3 {[%clk 0:04:20]} 19... Ne5
{[%clk 0:03:12.6]} 20. Nf5 {[%clk 0:04:12.4]} 20... Nc4 {[%clk 0:03:04]} 21.
Rhg1 {[%clk 0:03:57.9]} 21... Qc8 {[%clk 0:02:40]} 22. Nh6+ {[%clk 0:03:55]}
22... Kf8 {[%clk 0:02:30.3]} 23. Ng4 {[%clk 0:03:40.7]} 23... Qf5 {[%clk
0:02:15.4]} 24. Nxf6 {[%clk 0:03:33.6]} 24... Qxf6 {[%clk 0:02:13.5]} 25. Rxd5
{[%clk 0:03:32.4]} 25... Nxe3 {[%clk 0:02:10.6]} 26. fxe3 {[%clk 0:03:19.6]}
26... Rxe3 {[%clk 0:02:05.3]} 27. Qxb7 {[%clk 0:03:18.2]} 27... Rae8 {[%clk
0:02:00.3]} 28. Qb4+ {[%clk 0:02:57.3]} 28... Kg8 {[%clk 0:01:57.2]} 29. Rd6
{[%clk 0:02:49.2]} 29... Qf2 {[%clk 0:01:46.1]} 30. Rxg7+ {[%clk 0:02:41]} 30...
Kxg7 {[%clk 0:01:36.5]} 31. Qg4+ {[%clk 0:02:39.3]} 31... Kh8 {[%clk 0:01:32.4]}
32. Qd4+ {[%clk 0:02:37.2]} 32... f6 {[%clk 0:01:27.7]} 0-1

[Event "Live Chess"]
[Site "Chess.com"]
[Date "2024.06.02"]
[Round "-"]
[White "McCarthyStone"]
[Black "upoe610"]
[Result "0-1"]
[WhiteElo "2455"]
[BlackElo "2150"]
[TimeControl "300"]
[EndTime "6:55:30 PDT"]
[Termination "upoe610 won by resignation"]

1. e4 {[%clk 0:04:55.2]} 1... e5 {[%clk 0:04:58.7]} 2. Nf3 {[%clk 0:04:54.3]}
2... Nc6 {[%clk 0:04:57.8]} 3. Nc3 {[%clk 0:04:53.7]} 3... Nf6 {[%clk
0:04:56.7]} 4. g3 {[%clk 0:04:53.3]} 4... d5 {[%clk 0:04:52]} 5. exd5 {[%clk
0:04:53.2]} 5... Nxd5 {[%clk 0:04:51.1]} 6. Bg2 {[%clk 0:04:53]} 6... Nxc3
{[%clk 0:04:46.3]} 7. bxc3 {[%clk 0:04:52.9]} 7... e4 {[%clk 0:04:45.2]} 8. Nd4
{[%clk 0:04:27.4]} 8... Nxd4 {[%clk 0:04:43.1]} 9. cxd4 {[%clk 0:04:27.3]} 9...
Qxd4 {[%clk 0:04:41.8]} 10. Rb1 {[%clk 0:04:26.4]} 10... Bc5 {[%clk 0:04:40.2]}
11. O-O {[%clk 0:04:20.8]} 11... O-O {[%clk 0:04:39]} 12. Bb2 {[%clk 0:04:15.1]}
12... Qd5 {[%clk 0:04:34.5]} 13. d3 {[%clk 0:04:09.9]} 13... f5 {[%clk
0:04:28.7]} 14. dxe4 {[%clk 0:04:03.7]} 14... Qxd1 {[%clk 0:04:25.9]} 15. Rbxd1
{[%clk 0:04:02.1]} 15... fxe4 {[%clk 0:04:24.7]} 16. Bxe4 {[%clk 0:03:59.2]}
16... Bh3 {[%clk 0:04:23.6]} 17. Bd5+ {[%clk 0:03:49.7]} 17... Kh8 {[%clk
0:04:22.4]} 18. Bg2 {[%clk 0:03:48.8]} 18... Bg4 {[%clk 0:04:10]} 19. Rd2 {[%clk
0:03:35.2]} 19... Rae8 {[%clk 0:04:00.4]} 20. h3 {[%clk 0:03:29.2]} 20... Bh5
{[%clk 0:03:56.4]} 21. Rd7 {[%clk 0:03:22.6]} 21... Rf7 {[%clk 0:03:52]} 22. Rd5
{[%clk 0:03:05.1]} 22... Be2 {[%clk 0:03:45.6]} 23. Rxc5 {[%clk 0:02:55.9]}
23... Bxf1 {[%clk 0:03:43.6]} 24. Kxf1 {[%clk 0:02:42.4]} 24... c6 {[%clk
0:03:42.7]} 25. Rc3 {[%clk 0:02:21.9]} 25... Rd7 {[%clk 0:03:40.4]} 26. Rd3
{[%clk 0:02:20.5]} 26... Rde7 {[%clk 0:03:36.2]} 27. Bf3 {[%clk 0:02:09.7]}
27... h6 {[%clk 0:03:35.1]} 28. Kg2 {[%clk 0:02:07.1]} 28... Kh7 {[%clk
0:03:33.6]} 29. h4 {[%clk 0:02:06.6]} 29... a6 {[%clk 0:03:29.5]} 30. h5 {[%clk
0:02:05.6]} 30... Kg8 {[%clk 0:03:26.4]} 31. Rd6 {[%clk 0:01:58.9]} 31... Kf7
{[%clk 0:03:23.1]} 32. Rg6 {[%clk 0:01:55.1]} 32... Kg8 {[%clk 0:03:21.6]} 33.
c4 {[%clk 0:01:39.5]} 33... Rf7 {[%clk 0:03:19.5]} 34. Bd4 {[%clk 0:01:32.5]}
34... Ref8 {[%clk 0:03:17.6]} 35. Bd1 {[%clk 0:01:31.3]} 35... Rd8 {[%clk
0:03:14.6]} 36. Bb3 {[%clk 0:00:38.8]} 36... Rxd4 {[%clk 0:03:11.8]} 37. c5
{[%clk 0:00:38.6]} 37... Rd2 {[%clk 0:03:07.7]} 38. Rg4 {[%clk 0:00:29.4]} 38...
Rxf2+ {[%clk 0:03:06.2]} 39. Kh3 {[%clk 0:00:28.5]} 39... Kf8 {[%clk 0:03:04.7]}
40. Bxf7 {[%clk 0:00:27.1]} 40... Rxf7 {[%clk 0:03:02.6]} 41. Rd4 {[%clk
0:00:26.1]} 41... Ke8 {[%clk 0:03:00.6]} 42. Kg4 {[%clk 0:00:25.2]} 42... Rd7
{[%clk 0:02:58.6]} 43. Re4+ {[%clk 0:00:23.8]} 43... Kd8 {[%clk 0:02:57.9]} 44.
Rf4 {[%clk 0:00:23.2]} 44... Rd5 {[%clk 0:02:55.8]} 45. Rf8+ {[%clk 0:00:22]}
45... Ke7 {[%clk 0:02:52.7]} 46. Rb8 {[%clk 0:00:21.4]} 46... Rxc5 {[%clk
0:02:49.1]} 47. Rxb7+ {[%clk 0:00:20.3]} 47... Kf6 {[%clk 0:02:48.6]} 48. Rb6
{[%clk 0:00:19.7]} 48... a5 {[%clk 0:02:46.8]} 49. Kh4 {[%clk 0:00:17.5]} 49...
Rc2 {[%clk 0:02:35.3]} 50. a4 {[%clk 0:00:15.7]} 50... Rc4+ {[%clk 0:02:33.6]}
51. g4 {[%clk 0:00:15.3]} 51... Ke5 {[%clk 0:02:29.1]} 52. Ra6 {[%clk
0:00:14.5]} 52... Rc5 {[%clk 0:02:20.3]} 53. Ra7 {[%clk 0:00:13.6]} 53... Kf6
{[%clk 0:02:17.4]} 54. Ra6 {[%clk 0:00:13]} 54... g5+ {[%clk 0:02:14.1]} 55.
hxg6 {[%clk 0:00:12.6]} 55... Kxg6 {[%clk 0:02:13.5]} 56. Kg3 {[%clk 0:00:12.1]}
56... Kg5 {[%clk 0:02:11.7]} 57. Kf3 {[%clk 0:00:11.3]} 57... Rc3+ {[%clk
0:02:10.8]} 58. Ke4 {[%clk 0:00:10.9]} 58... Kxg4 {[%clk 0:02:09]} 59. Rxa5
{[%clk 0:00:08.8]} 59... h5 {[%clk 0:02:07.2]} 60. Ra8 {[%clk 0:00:08.7]} 60...
h4 {[%clk 0:02:05.6]} 61. Rg8+ {[%clk 0:00:08.6]} 61... Kh3 {[%clk 0:02:04.9]}
62. Kd4 {[%clk 0:00:08.2]} 62... Rg3 {[%clk 0:02:02.1]} 63. Kc5 {[%clk
0:00:07.8]} 63... Rxg8 {[%clk 0:02:00.7]} 0-1

[Event "Live Chess"]
[Site "Chess.com"]
[Date "2024.06.02"]
[Round "-"]
[White "Colm_Buckley"]
[Black "CheckThis4"]
[Result "0-1"]
[WhiteElo "1882"]
[BlackElo "2680"]
[TimeControl "300"]
[EndTime "6:55:31 PDT"]
[Termination "CheckThis4 won on time"]

1. d4 {[%clk 0:04:54.4]} 1... d5 {[%clk 0:04:58]} 2. c4 {[%clk 0:04:53.5]} 2...
e5 {[%clk 0:04:56.6]} 3. e3 {[%clk 0:04:50]} 3... exd4 {[%clk 0:04:52.4]} 4.
exd4 {[%clk 0:04:48.1]} 4... Nf6 {[%clk 0:04:52.1]} 5. Nf3 {[%clk 0:04:46.4]}
5... Bb4+ {[%clk 0:04:48.7]} 6. Nc3 {[%clk 0:04:45.1]} 6... O-O {[%clk
0:04:47.8]} 7. Be2 {[%clk 0:04:37.4]} 7... dxc4 {[%clk 0:04:46.4]} 8. Bxc4
{[%clk 0:04:31.9]} 8... Bg4 {[%clk 0:04:45.2]} 9. O-O {[%clk 0:04:28.7]} 9...
Nc6 {[%clk 0:04:43.2]} 10. a3 {[%clk 0:04:10.5]} 10... Ba5 {[%clk 0:04:36.6]}
11. Bg5 {[%clk 0:04:02.2]} 11... h6 {[%clk 0:04:29]} 12. Bxf6 {[%clk 0:04:00.3]}
12... Qxf6 {[%clk 0:04:27.8]} 13. Nd5 {[%clk 0:03:51.6]} 13... Qd6 {[%clk
0:04:22.8]} 14. b4 {[%clk 0:03:45]} 14... Bb6 {[%clk 0:04:21.4]} 15. Nxb6 {[%clk
0:03:40]} 15... axb6 {[%clk 0:04:21.3]} 16. d5 {[%clk 0:03:32.8]} 16... Bxf3
{[%clk 0:04:14.8]} 17. Qxf3 {[%clk 0:03:28.5]} 17... Ne5 {[%clk 0:04:14.3]} 18.
Qb3 {[%clk 0:03:09.7]} 18... Rfe8 {[%clk 0:04:12.6]} 19. Rfd1 {[%clk 0:02:59.2]}
19... Re7 {[%clk 0:04:09.8]} 20. Bf1 {[%clk 0:02:47.8]} 20... Rae8 {[%clk
0:04:06.1]} 21. h3 {[%clk 0:02:44.4]} 21... Ng6 {[%clk 0:04:04.2]} 22. Rac1
{[%clk 0:02:35.5]} 22... Nf4 {[%clk 0:04:02.5]} 23. Qc4 {[%clk 0:02:30.2]} 23...
Qf6 {[%clk 0:03:55]} 24. g3 {[%clk 0:02:22]} 24... Ng6 {[%clk 0:03:52.3]} 25.
Qd4 {[%clk 0:02:15]} 25... Ne5 {[%clk 0:03:50.2]} 26. Bg2 {[%clk 0:02:02.4]}
26... Nf3+ {[%clk 0:03:46.8]} 27. Bxf3 {[%clk 0:02:00.4]} 27... Qxf3 {[%clk
0:03:46.7]} 28. d6 {[%clk 0:01:47.3]} 28... cxd6 {[%clk 0:03:43.7]} 29. Qxd6
{[%clk 0:01:42.9]} 29... Re2 {[%clk 0:03:41.2]} 30. Qxb6 {[%clk 0:01:39.6]}
30... R8e6 {[%clk 0:03:35.1]} 31. Qd8+ {[%clk 0:01:32.6]} 31... Kh7 {[%clk
0:03:33.6]} 32. Qd3+ {[%clk 0:01:31.8]} 32... Qxd3 {[%clk 0:03:22.1]} 33. Rxd3
{[%clk 0:01:31.2]} 33... Rf6 {[%clk 0:03:21.1]} 34. Rf1 {[%clk 0:01:25.7]} 34...
Ra2 {[%clk 0:03:15.7]} 35. Kg2 {[%clk 0:01:17.5]} 35... g5 {[%clk 0:03:13.9]}
36. g4 {[%clk 0:01:05.7]} 36... Kg7 {[%clk 0:03:11.2]} 37. Kg3 {[%clk
0:01:02.9]} 37... Rf4 {[%clk 0:03:05.5]} 38. f3 {[%clk 0:00:56.9]} 38... Rc4
{[%clk 0:03:04.3]} 39. h4 {[%clk 0:00:50.4]} 39... Rcc2 {[%clk 0:03:02.9]} 40.
hxg5 {[%clk 0:00:42.9]} 40... hxg5 {[%clk 0:03:00.8]} 41. Rg1 {[%clk 0:00:38.3]}
41... Rf2 {[%clk 0:02:53.7]} 42. Rd5 {[%clk 0:00:32.4]} 42... Kg6 {[%clk
0:02:48.1]} 43. Rd6+ {[%clk 0:00:29.6]} 43... f6 {[%clk 0:02:47]} 44. Rb6 {[%clk
0:00:23.6]} 44... Rfb2 {[%clk 0:02:43.2]} 45. Rxb7 {[%clk 0:00:21.6]} 45... Rxa3
{[%clk 0:02:39.7]} 46. b5 {[%clk 0:00:18.9]} 46... Rab3 {[%clk 0:02:26.5]} 47.
b6 {[%clk 0:00:16.6]} 47... Rxb6 {[%clk 0:02:25.5]} 48. Rxb6 {[%clk 0:00:15.4]}
48... Rxb6 {[%clk 0:02:25.1]} 49. Re1 {[%clk 0:00:14.7]} 49... Rb2 {[%clk
0:02:23.4]} 50. Re4 {[%clk 0:00:13.8]} 50... Rb1 {[%clk 0:02:21.7]} 51. Rd4
{[%clk 0:00:13.2]} 51... Rb6 {[%clk 0:02:20.1]} 52. Re4 {[%clk 0:00:11.9]} 52...
f5 {[%clk 0:02:18.2]} 53. gxf5+ {[%clk 0:00:10.4]} 53... Kxf5 {[%clk 0:02:18.1]}
54. Ra4 {[%clk 0:00:08.8]} 54... Rc6 {[%clk 0:02:16.9]} 55. Ra5+ {[%clk
0:00:07.9]} 55... Kg6 {[%clk 0:02:16.1]} 56. Ra4 {[%clk 0:00:07]} 56... Rf6
{[%clk 0:02:14.6]} 57. Kg4 {[%clk 0:00:05.5]} 57... Rd6 {[%clk 0:02:11.4]} 58.
Ra5 {[%clk 0:00:04.2]} 58... Rd4+ {[%clk 0:02:09.5]} 59. Kg3 {[%clk 0:00:03.5]}
59... Kh5 {[%clk 0:02:07.5]} 60. Rb5 {[%clk 0:00:02.6]} 60... Rd3 {[%clk
0:02:05.1]} 61. Ra5 {[%clk 0:00:01.2]} 61... Rc3 {[%clk 0:02:03.2]} 62. Rb5
{[%clk 0:00:00.1]} 62... Kg6 {[%clk 0:02:00.8]} 0-1

[Event "Live Chess"]
[Site "Chess.com"]
[Date "2024.06.02"]
[Round "-"]
[White "RichardABates"]
[Black "Grace6363"]
[Result "1-0"]
[WhiteElo "2368"]
[BlackElo "1146"]
[TimeControl "300"]
[EndTime "6:55:43 PDT"]
[Termination "RichardABates won by resignation"]

1. d4 {[%clk 0:04:56.8]} 1... Nf6 {[%clk 0:04:57.7]} 2. Nf3 {[%clk 0:04:54.9]}
2... g6 {[%clk 0:04:56.5]} 3. g3 {[%clk 0:04:53]} 3... Bg7 {[%clk 0:04:55.4]} 4.
Bg2 {[%clk 0:04:52]} 4... d6 {[%clk 0:04:54.7]} 5. O-O {[%clk 0:04:50.9]} 5...
Nbd7 {[%clk 0:04:54]} 6. c4 {[%clk 0:04:49.1]} 6... b6 {[%clk 0:04:52.5]} 7. Ne5
{[%clk 0:04:40.1]} 7... Rb8 {[%clk 0:04:48.7]} 8. Nc6 {[%clk 0:04:38.2]} 8...
Bb7 {[%clk 0:04:40.2]} 9. Nxd8 {[%clk 0:04:35.6]} 9... Bxg2 {[%clk 0:04:37.8]}
10. Kxg2 {[%clk 0:04:33]} 10... Rxd8 {[%clk 0:04:37.1]} 11. Nc3 {[%clk
0:04:31.2]} 11... O-O {[%clk 0:04:25.7]} 12. Qa4 {[%clk 0:04:22.2]} 12... a5
{[%clk 0:04:11.5]} 13. Nd5 {[%clk 0:04:13.2]} 13... Nxd5 {[%clk 0:04:10]} 14.
cxd5 {[%clk 0:04:10.7]} 14... Nf6 {[%clk 0:03:56.7]} 15. Qc6 {[%clk 0:04:08]}
15... Ne4 {[%clk 0:03:47.6]} 16. Be3 {[%clk 0:04:00.6]} 16... f5 {[%clk
0:03:38.8]} 17. f3 {[%clk 0:03:54.2]} 17... Nf6 {[%clk 0:03:34.5]} 18. Rac1
{[%clk 0:03:49.4]} 18... Nd7 {[%clk 0:03:22.6]} 19. Qxc7 {[%clk 0:03:46]} 19...
h6 {[%clk 0:03:15.8]} 20. Qb7 {[%clk 0:03:36.6]} 20... g5 {[%clk 0:03:13.7]} 21.
Rc7 {[%clk 0:03:30.5]} 21... Rb8 {[%clk 0:03:01.5]} 22. Rxd7 {[%clk 0:03:24.5]}
22... Rxb7 {[%clk 0:03:00.1]} 23. Rxb7 {[%clk 0:03:23.2]} 23... f4 {[%clk
0:02:52.4]} 24. gxf4 {[%clk 0:03:16.7]} 24... gxf4 {[%clk 0:02:51.8]} 25. Bf2
{[%clk 0:03:12.4]} 25... Rf5 {[%clk 0:02:49.1]} 26. Rxe7 {[%clk 0:03:08.4]}
26... Rxd5 {[%clk 0:02:47.2]} 27. Kh1 {[%clk 0:03:04]} 27... Bf6 {[%clk
0:02:36.5]} 28. Rg1+ {[%clk 0:03:00]} 28... Kf8 {[%clk 0:02:35.8]} 29. Rb7
{[%clk 0:02:56.6]} 29... b5 {[%clk 0:02:27.6]} 30. Rg6 {[%clk 0:02:46.4]} 30...
Rf5 {[%clk 0:02:19.2]} 31. Rxh6 {[%clk 0:02:44.4]} 1-0

[Event "Live Chess"]
[Site "Chess.com"]
[Date "2024.06.02"]
[Round "-"]
[White "Duke_of_Bebington"]
[Black "McFim"]
[Result "0-1"]
[WhiteElo "1590"]
[BlackElo "1793"]
[TimeControl "300"]
[EndTime "6:55:43 PDT"]
[Termination "McFim won by resignation"]

1. e4 {[%clk 0:04:56.2]} 1... c6 {[%clk 0:04:58.9]} 2. d4 {[%clk 0:04:55]} 2...
d5 {[%clk 0:04:58.8]} 3. e5 {[%clk 0:04:53.7]} 3... Bf5 {[%clk 0:04:57.7]} 4. g4
{[%clk 0:04:52.6]} 4... Be4 {[%clk 0:04:56.4]} 5. f3 {[%clk 0:04:51.3]} 5... Bg6
{[%clk 0:04:55.3]} 6. h4 {[%clk 0:04:51]} 6... h5 {[%clk 0:04:54.2]} 7. e6
{[%clk 0:04:49.7]} 7... Qd6 {[%clk 0:04:53.3]} 8. exf7+ {[%clk 0:04:48.1]} 8...
Bxf7 {[%clk 0:04:53.2]} 9. Bd3 {[%clk 0:04:27.4]} 9... Qg3+ {[%clk 0:04:50.5]}
10. Kf1 {[%clk 0:04:25.9]} 10... hxg4 {[%clk 0:04:49]} 11. fxg4 {[%clk
0:04:19.4]} 11... Rxh4 {[%clk 0:04:40.3]} 12. Rxh4 {[%clk 0:04:15.3]} 12... Qxh4
{[%clk 0:04:38.9]} 13. Bf5 {[%clk 0:04:14.1]} 13... e6 {[%clk 0:04:31]} 14. Bd3
{[%clk 0:04:10.6]} 14... Nf6 {[%clk 0:04:24.4]} 15. Bf4 {[%clk 0:04:00.3]} 15...
Qxg4 {[%clk 0:04:15.3]} 16. Qxg4 {[%clk 0:03:58.3]} 16... Nxg4 {[%clk
0:04:15.2]} 17. Nd2 {[%clk 0:03:55.2]} 17... Nd7 {[%clk 0:04:13.4]} 18. Re1
{[%clk 0:03:52.9]} 18... O-O-O {[%clk 0:04:01.6]} 19. Ngf3 {[%clk 0:03:48.7]}
19... Be7 {[%clk 0:03:23.7]} 20. c4 {[%clk 0:03:35]} 20... Rh8 {[%clk
0:03:16.4]} 21. Kg2 {[%clk 0:03:31.8]} 21... Ngf6 {[%clk 0:03:04]} 22. Ng5
{[%clk 0:03:19.6]} 22... Bg8 {[%clk 0:02:53.6]} 23. Nxe6 {[%clk 0:03:16.5]}
23... Bb4 {[%clk 0:02:45.7]} 24. Nxg7 {[%clk 0:03:03.7]} 24... Rh4 {[%clk
0:02:34.8]} 25. Kg3 {[%clk 0:02:43]} 25... Rxf4 {[%clk 0:02:32.4]} 26. Kxf4
{[%clk 0:02:41.8]} 26... Bxd2+ {[%clk 0:02:31]} 27. Kf3 {[%clk 0:02:39.9]} 27...
Bxe1 {[%clk 0:02:29.9]} 28. Bf5 {[%clk 0:02:38.5]} 28... Kd8 {[%clk 0:02:26.8]}
29. cxd5 {[%clk 0:02:37.4]} 29... Bxd5+ {[%clk 0:02:23.8]} 30. Ke2 {[%clk
0:02:35.2]} 0-1

[Event "Live Chess"]
[Site "Chess.com"]
[Date "2024.06.02"]
[Round "-"]
[White "LL220284LL"]
[Black "grillage"]
[Result "1-0"]
[WhiteElo "2474"]
[BlackElo "1885"]
[TimeControl "300"]
[EndTime "6:55:59 PDT"]
[Termination "LL220284LL won by resignation"]

1. g3 {[%clk 0:04:59.4]} 1... g6 {[%clk 0:04:55.1]} 2. Bg2 {[%clk 0:04:59.3]}
2... Bg7 {[%clk 0:04:53.6]} 3. Nf3 {[%clk 0:04:58.8]} 3... Nf6 {[%clk
0:04:52.1]} 4. O-O {[%clk 0:04:58.3]} 4... O-O {[%clk 0:04:51]} 5. d3 {[%clk
0:04:58]} 5... c5 {[%clk 0:04:50]} 6. c4 {[%clk 0:04:57.5]} 6... Nc6 {[%clk
0:04:49.2]} 7. Nc3 {[%clk 0:04:57.1]} 7... d6 {[%clk 0:04:48.4]} 8. Rb1 {[%clk
0:04:55.5]} 8... Rb8 {[%clk 0:04:47.7]} 9. a3 {[%clk 0:04:53.4]} 9... a6 {[%clk
0:04:42.7]} 10. Nd2 {[%clk 0:04:48.8]} 10... Bd7 {[%clk 0:04:40.7]} 11. Nd5
{[%clk 0:04:44.7]} 11... Nxd5 {[%clk 0:04:33.7]} 12. cxd5 {[%clk 0:04:44.6]}
12... Na7 {[%clk 0:04:24.5]} 13. b4 {[%clk 0:04:41.6]} 13... cxb4 {[%clk
0:04:11.8]} 14. Rxb4 {[%clk 0:04:41.5]} 14... b5 {[%clk 0:04:09.9]} 15. Nf3
{[%clk 0:04:35.5]} 15... Nc8 {[%clk 0:04:05.8]} 16. Rh4 {[%clk 0:04:29.4]} 16...
Nb6 {[%clk 0:03:59]} 17. Bh6 {[%clk 0:04:25.4]} 17... Bxh6 {[%clk 0:03:39.7]}
18. Rxh6 {[%clk 0:04:23.6]} 18... Kg7 {[%clk 0:03:38]} 19. Qd2 {[%clk
0:04:16.5]} 19... f6 {[%clk 0:03:22.7]} 20. Nd4 {[%clk 0:04:08.6]} 20... g5
{[%clk 0:03:13.9]} 21. Rh3 {[%clk 0:04:01.8]} 21... Bxh3 {[%clk 0:03:09]} 22.
Bxh3 {[%clk 0:04:01.7]} 22... Nxd5 {[%clk 0:03:03.4]} 23. Ne6+ {[%clk
0:03:59.9]} 1-0